bitfinex-derivatives/quotes_ETHF0:USTF0_20250321
["timestamp","ask_amount","ask_price","bid_price","bid_amount"]
[1742515201071,0.6631,1984.4,1984.2,1.3477]
[1742515203684,1.00849,1984.3,1984.2,2.35623]
[1742515204767,1.00849,1984.3,1984.2,1.3477]
[1742515205578,1.00864,1984.0,1983.9,3.21536315]
[1742515205776,1.00864,1984.0,1983.9,4.22406315]
[1742515206175,0.00756315,1984.1,1983.9,4.22406315]
[1742515206176,1.01619315,1984.1,1984.0,1.00864]
[1742515206476,1.01619315,1984.1,1984.0,0.6915]
[1742515206680,1.00864,1984.0,1983.9,0.00756315]
[1742515206881,1.65694,1984.0,1983.9,0.00756315]
[1742515207083,1.65694,1984.0,1983.9,1.28326315]
[1742515207282,2.97194,1984.0,1983.9,1.28326315]
[1742515207676,2.97194,1984.0,1983.9,2.29196315]
[1742515208878,2.97194,1984.0,1983.9,1.28326315]
[1742515209277,2.97194,1984.0,1983.9,2.29196315]
[1742515209783,2.32364,1984.0,1983.9,2.29196315]
[1742515211678,2.32364,1984.0,1983.9,1.28326315]
[1742515212080,2.32364,1984.0,1983.9,0.00756315]
[1742515213584,5.53144,1984.0,1983.9,0.00756315]
[1742515217786,5.53144,1984.0,1983.9,3.15e-06]
[1742515217787,8.03144,1984.0,1983.9,3.15e-06]
[1742515217982,5.53144,1984.0,1983.9,3.15e-06]
[1742515224192,1.00864,1984.0,1983.9,3.15e-06]
[1742515224489,1.00864,1984.0,1983.9,3.03420315]
[1742515224884,1.00864,1984.0,1983.9,2.02550315]
[1742515225801,2.38208315,1984.1,1984.0,1.00864]
[1742515226088,0.00756315,1984.1,1984.0,3.02134]
[1742515236700,1.00836,1984.6,1984.5,1.00835]
[1742515237004,1.00846,1984.4,1984.3,1.00845]
[1742515237607,2.32686,1984.4,1984.3,1.00845]
[1742515237797,2.32686,1984.4,1984.3,2.29765]
[1742515238292,2.32686,1984.4,1984.3,1.2892]
[1742515239702,2.32686,1984.4,1984.3,2.29769]
[1742515239902,0.00756315,1984.5,1984.4,1.00844]
[1742515240098,2.37375315,1984.5,1984.4,1.00844]
[1742515240299,2.37375315,1984.5,1984.4,2.29704]
[1742515240897,1.36536315,1984.5,1984.4,2.29704]
[1742515242797,2.37375315,1984.5,1984.4,2.29704]
[1742515246208,2.37375315,1984.5,1984.4,1.2886]
[1742515246399,2.37375315,1984.5,1984.4,2.29704]
[1742515247206,2.37375315,1984.5,1984.4,1.2886]
[1742515247604,1.00849,1984.3,1984.2,3.2078]
[1742515247802,1.00849,1984.3,1984.2,4.5656]
[1742515248305,5.56429,1984.3,1984.2,1.3578]
[1742515248502,1.00864,1984.0,1983.9,3.20780315]
[1742515248696,1.00864,1984.0,1983.9,4.21647315]
[1742515249711,2.36344,1984.0,1983.9,5.51157315]
[1742515251114,1.3548,1984.0,1983.9,2.30377315]
[1742515251614,2.36344,1984.0,1983.9,2.30377315]
[1742515251802,3.74944,1984.0,1983.9,2.30377315]
[1742515258215,2.36344,1984.0,1983.9,2.30377315]
[1742515259015,2.36344,1984.0,1983.9,3.15e-06]
[1742515261508,1.3548,1984.0,1983.9,3.15e-06]
[1742515261709,1.3548,1984.0,1983.9,1.00870315]
[1742515262010,1.3548,1984.0,1983.9,2.30240315]
[1742515262326,3.222,1984.1,1984.0,1.00864]
[1742515262618,1.00855,1984.2,1984.1,1.00859]
[1742515262916,1.305,1984.2,1984.1,1.00859]
[1742515263419,2.31354,1984.2,1984.1,1.00859]
[1742515264020,2.31354,1984.2,1984.1,2.36409]
[1742515264326,1.305,1984.2,1984.1,2.36409]
[1742515266115,2.31354,1984.2,1984.1,2.36409]
[1742515266421,1.305,1984.2,1984.1,2.36409]
[1742515266620,2.31354,1984.2,1984.1,1.3555]
[1742515267615,2.31354,1984.2,1984.1,2.36409]
[1742515269129,2.31354,1984.2,1984.1,1.3555]
[1742515269626,2.31354,1984.2,1983.9,3.15e-06]
[1742515269627,4.5128,1984.2,1983.9,3.15e-06]
[1742515269817,1.00864,1984.0,1983.9,1.00868315]
[1742515270222,3.00184,1984.0,1983.9,3.15e-06]
[1742515270733,6.20964,1984.0,1983.9,3.15e-06]
[1742515274125,3.00184,1984.0,1983.9,3.15e-06]
[1742515278230,6.20964,1984.0,1983.9,3.15e-06]
[1742515285233,6.20964,1984.0,1983.9,1.33400315]
[1742515286641,6.20964,1984.0,1983.9,2.34270315]
[1742515286847,6.20964,1984.0,1983.9,1.33400315]
[1742515287037,6.20964,1984.0,1983.9,3.15e-06]
[1742515288542,9.42764,1984.0,1983.9,3.15e-06]
[1742515288743,9.42764,1984.0,1983.9,1.31520315]
[1742515290949,9.42764,1984.0,1983.9,3.15e-06]
[1742515301045,10.53066733,1984.0,1983.9,3.15e-06]
[1742515301949,13.03066733,1984.0,1983.9,3.15e-06]
[1742515302149,1.00875,1983.8,1983.7,1.3037]
[1742515302351,7.43255,1983.8,1983.7,1.3037]
[1742515302852,8.09345,1983.8,1983.7,1.3037]
[1742515304153,7.43255,1983.8,1983.7,1.3037]
[1742515304357,7.43255,1983.8,1983.7,2.6674]
[1742515306957,8.08075,1983.8,1983.7,2.6674]
[1742515307757,8.08075,1983.8,1983.7,1.9824]
[1742515307958,8.08075,1983.8,1983.7,1.3037]
[1742515311062,8.69998335,1983.8,1983.7,1.3037]
[1742515311461,1.0088,1983.7,1983.6,0.00756315]
[1742515311761,3.70363335,1983.7,1983.6,0.00756315]
[1742515312063,3.0844,1983.7,1983.6,0.00756315]
[1742515313758,3.0844,1983.7,1983.6,1.38956315]
[1742515317760,3.0844,1983.7,1983.6,0.00756315]
[1742515317960,1.009,1983.3,1983.2,2.0614]
[1742515318158,7.4328,1983.3,1983.2,2.0614]
[1742515318756,8.8236,1983.3,1983.2,2.0614]
[1742515319363,8.8236,1983.3,1983.2,2.7389]
[1742515321670,8.8236,1983.3,1983.2,1.3549]
[1742515323168,9.4495818,1983.3,1983.2,1.3549]
[1742515324164,9.4495818,1983.3,1983.1,0.00756315]
[1742515324165,1.00905,1983.2,1983.1,0.00756315]
[1742515324470,2.36895,1983.2,1983.1,0.00756315]
[1742515324662,3.50555742,1983.2,1983.1,0.00756315]
[1742515324866,5.10731485,1983.2,1982.6,0.6514]
[1742515325066,1.00931,1982.7,1982.6,0.6514]
[1742515325260,3.216,1982.7,1982.6,1.66076]
[1742515325466,3.216,1983.1,1983.0,1.00915]
[1742515325666,1.00905,1983.2,1983.1,1.00909]
[1742515325968,4.22505,1983.2,1983.0,1.00911]
[1742515326166,4.22505,1983.2,1983.1,2.0263]
[1742515326472,4.22505,1983.2,1983.1,3.0354]
[1742515326865,4.22505,1983.2,1983.1,2.0263]
[1742515327269,5.62065,1983.2,1983.1,2.0263]
[1742515327474,5.62065,1983.2,1983.1,3.0354]
[1742515327771,5.62065,1983.2,1983.1,2.0263]
[1742515328875,5.62065,1983.2,1983.1,3.0354]
[1742515329669,2.40465,1983.2,1983.1,2.0263]
[1742515329871,3.216,1983.2,1983.1,3.0354]
[1742515330069,0.00756315,1983.4,1983.1,2.0263]
[1742515330263,0.00756315,1983.4,1983.3,1.009]
[1742515330463,3.22456315,1983.4,1983.3,1.009]
[1742515330670,2.5204,1983.8,1983.6,1.00883]
[1742515330880,3.52917,1983.8,1983.7,2.3168]
[1742515331178,6.74717,1983.8,1983.7,1.308]
[1742515331369,8.12887,1983.8,1983.7,1.308]
[1742515332174,2.52207,1983.7,1983.1,1.00907]
[1742515332372,1.00903,1983.3,1983.2,1.3643]
[1742515332569,4.22903,1983.3,1983.2,1.3643]
[1742515333676,5.56463,1983.3,1983.2,1.3643]
[1742515334081,3.22,1983.3,1983.2,2.37335]
[1742515335176,3.22,1983.3,1983.2,1.3643]
[1742515335177,4.229,1983.3,1983.2,1.3643]
[1742515335371,5.5711,1983.3,1983.2,1.3643]
[1742515335572,5.5711,1983.3,1983.2,2.37335]
[1742515335773,5.5711,1983.3,1983.2,1.3643]
[1742515335968,4.5621,1983.3,1983.2,2.37335]
[1742515336477,4.21679,1983.4,1983.3,1.009]
[1742515336478,6.4278,1983.4,1983.3,1.009]
[1742515336679,3.22,1983.4,1983.3,2.3512]
[1742515337081,1.00885,1983.6,1983.5,1.00887]
[1742515337374,4.22885,1983.6,1983.4,2.35111]
[1742515337572,4.22885,1983.6,1983.5,1.3799]
[1742515338776,3.22,1983.6,1983.5,2.3888]
[1742515339281,5.50725,1983.6,1983.5,2.3888]
[1742515339675,3.219,1983.6,1983.5,2.3888]
[1742515340082,4.22785,1983.6,1983.5,2.3888]
[1742515340979,4.22785,1983.6,1983.5,1.3799]
[1742515341376,4.22785,1983.6,1983.5,2.3888]
[1742515342377,4.22785,1983.6,1983.5,1.3799]
[1742515342577,3.8708,1983.6,1983.4,1.00895]
[1742515342778,4.87965,1983.6,1983.5,1.3417]
[1742515343882,7.0786,1983.6,1983.0,0.00756315]
[1742515344086,1.009,1983.3,1983.2,1.2804]
[1742515344285,4.227,1983.3,1983.2,1.2804]
[1742515344481,1.0091,1983.1,1983.0,1.01671315]
[1742515344789,4.2271,1983.1,1983.0,0.00756315]
[1742515345483,4.2271,1983.1,1983.0,1.01671315]
[1742515347289,4.2271,1983.1,1983.0,0.00756315]
[1742515347488,4.2271,1983.1,1983.0,1.32026315]
[1742515348378,4.8716,1983.1,1983.0,1.32026315]
[1742515348993,4.8716,1983.1,1983.0,0.00756315]
[1742515355295,4.84800124,1983.1,1983.0,0.00756315]
[1742515356307,4.8706,1983.1,1983.0,0.00756315]
[1742515357498,6.2425,1983.1,1983.0,0.00756315]
[1742515359299,1.00925,1982.8,1982.7,1.3756]
[1742515359503,1.0094,1982.6,1982.4,2.32634]
[1742515359806,4.2264,1982.6,1982.5,1.3756]
[1742515361300,4.2264,1982.6,1982.5,2.38501]
[1742515361608,4.2264,1982.6,1982.5,1.3756]
[1742515363410,4.2264,1982.6,1982.5,2.38501]
[1742515363607,3.217,1982.6,1982.5,2.38501]
[1742515363805,4.22636,1982.6,1982.5,2.38501]
[1742515364112,3.21536315,1982.7,1982.6,1.00936]
[1742515364309,3.21536315,1982.7,1982.6,2.35126]
[1742515364310,0.00756315,1982.7,1982.6,2.35126]
[1742515367406,0.4862,1982.8,1982.7,1.00931]
[1742515367611,0.4862,1982.8,1982.7,2.32311]
[1742515367910,4.22615,1983.0,1982.9,1.0092]
[1742515368303,1.0092,1982.9,1982.8,3.09902]
[1742515368506,1.0092,1982.9,1982.8,1.68792]
[1742515369011,4.23375315,1983.0,1982.9,1.0092]
[1742515375614,3.22456315,1983.0,1982.9,1.0092]
[1742515376306,4.23371315,1983.0,1982.9,1.0092]
[1742515376706,3.22456315,1983.0,1982.9,1.0092]
[1742515377014,4.23371315,1983.0,1982.9,1.0092]
[1742515377414,1.29126315,1983.0,1982.9,1.0092]
[1742515378507,0.00756315,1983.0,1982.9,1.0092]
[1742515378907,2.02466315,1983.0,1982.9,1.0092]
[1742515381013,2.02466315,1983.0,1982.9,3.5092]
[1742515381218,0.2569,1983.1,1983.0,1.00915]
[1742515381511,2.2222,1983.4,1983.3,1.009]
[1742515381711,7.5584684,1984.4,1983.8,2.52178]
[1742515381921,1.9887,1984.2,1984.1,1.00859]
[1742515382121,0.6388,1984.2,1984.1,1.00859]
[1742515382512,1.64734,1984.2,1984.1,1.00859]
[1742515382719,2.99724,1984.2,1984.1,1.00859]
[1742515383111,4.25714,1984.2,1984.1,1.00859]
[1742515383317,3.2486,1984.2,1984.1,1.00859]
[1742515383718,6.4646,1984.2,1984.1,1.00859]
[1742515385022,1.2599,1984.2,1984.1,1.00859]
[1742515386117,1.2599,1984.2,1984.1,4.21639]
[1742515387423,1.2599,1984.2,1984.1,5.52529]
[1742515393322,1.2599,1984.2,1984.1,8.02529]
[1742515394028,0.15641,1984.2,1984.1,8.02529]
[1742515394227,3.15e-06,1984.3,1984.2,1.00854]
[1742515394432,3.15e-06,1984.3,1984.2,5.56274]
[1742515394631,3.15e-06,1984.3,1984.2,8.06274]
[1742515398130,3.15e-06,1984.3,1984.2,54.65774]
[1742515405640,3.15e-06,1984.3,1984.2,54.65674]
[1742515408747,1.3776,1984.9,1984.8,1.00824]
[1742515408748,0.34445315,1984.9,1984.8,1.00824]
[1742515409055,3.15e-06,1984.9,1984.8,7.43204]
[1742515409648,3.15e-06,1984.9,1984.8,8.72204]
[1742515410050,0.2702663,1985.0,1984.9,1.00819]
[1742515410247,6.3e-06,1985.0,1984.9,2.29819]
[1742515421362,6.3e-06,1985.0,1984.9,5.50599]
[1742515424064,2.1901,1985.6,1985.1,2.52022]
[1742515424363,3.2078,1987.6,1985.8,50.38552]
[1742515424561,1.3761,1987.4,1987.1,3.2078]
[1742515424862,1.00712,1987.0,1986.9,3.2078]
[1742515425071,1.3761,1987.4,1986.7,3.2078]
[1742515425072,3.2078,1987.1,1986.7,3.2078]
[1742515425265,0.00756315,1987.1,1987.0,1.00712]
[1742515425863,0.00756315,1987.1,1986.9,1.00716]
[1742515426065,0.00756315,1987.1,1987.0,1.00712]
[1742515426567,1.01463315,1987.1,1987.0,1.00712]
[1742515426966,1.00717,1986.9,1986.8,0.00756315]
[1742515427167,1.00724,1986.8,1986.7,1.00722]
[1742515427368,4.51169,1986.8,1986.4,1.00739]
[1742515427561,1.00736,1986.6,1986.5,1.00735]
[1742515427760,1.00736,1986.6,1986.2,7.21964]
[1742515427969,1.3515,1986.5,1986.4,1.00743]
[1742515428363,2.35887,1986.5,1986.4,1.00743]
[1742515428565,1.3515,1986.5,1986.4,1.00743]
[1742515428766,1.3515,1986.5,1986.3,0.00756315]
[1742515428767,1.00743,1986.4,1986.3,1.00743]
[1742515428965,1.3515,1986.5,1986.1,3.2078]
[1742515429159,4.5593,1986.5,1986.2,1.0075]
[1742515429367,4.33544,1986.4,1986.3,1.00743]
[1742515429567,4.6505,1986.4,1986.3,1.00743]
[1742515429866,1.3225,1986.4,1986.3,1.00743]
[1742515430168,0.6421,1986.8,1986.7,1.00727]
[1742515431670,0.6421,1986.8,1986.7,2.39197]
[1742515432265,0.6421,1986.8,1986.7,1.00727]
[1742515432462,1.64932,1986.8,1986.7,1.00727]
[1742515432669,1.00736,1986.6,1986.5,1.00735]
[1742515433074,1.00742,1986.5,1986.4,1.00741]
[1742515433372,1.00748,1986.3,1986.2,1.01509315]
[1742515433869,2.0081,1986.4,1986.3,1.00748]
[1742515434172,2.0081,1986.4,1986.2,1.01505315]
[1742515434173,1.00748,1986.3,1986.2,1.01505315]
[1742515434368,2.36028,1986.3,1986.2,1.01505315]
[1742515434566,1.3528,1986.3,1986.2,1.01505315]
[1742515435273,1.3528,1986.3,1986.2,4.22285315]
[1742515435472,0.6553,1986.4,1986.2,3.21536315]
[1742515435673,1.3891,1986.5,1986.4,1.00743]
[1742515435872,0.6642,1986.7,1986.6,1.00732]
[1742515436072,2.0533,1986.7,1986.6,4.21512]
[1742515436671,2.0533,1986.7,1986.6,1.00732]
[1742515436873,2.0533,1986.7,1986.6,4.21512]
[1742515437374,3.337,1986.9,1986.8,1.00722]
[1742515437676,3.337,1986.9,1986.6,4.21512]
[1742515437677,0.6642,1987.0,1986.9,1.00717]
[1742515438375,1.67132,1987.0,1986.9,1.00717]
[1742515438563,0.6642,1987.0,1986.9,1.00717]
[1742515438769,2.0049,1987.0,1986.9,1.00717]
[1742515439169,0.00756315,1987.1,1987.0,1.00712]
[1742515439574,1.01463315,1987.1,1987.0,1.00712]
[1742515439774,1.00712,1987.0,1986.9,2.41366]
[1742515440178,1.00712,1987.0,1986.9,1.00716]
[1742515440378,2.34782,1987.0,1986.9,1.00716]
[1742515440776,2.34782,1987.0,1986.8,1.4065]
[1742515440777,1.00717,1986.9,1986.8,2.41368]
[1742515440979,2.98737,1986.9,1986.8,1.00718]
[1742515443983,1.3407,1986.9,1986.8,1.00718]
[1742515444183,2.34787,1986.9,1986.8,1.00718]
[1742515444576,1.3407,1986.9,1986.8,1.00718]
[1742515445380,4.35965315,1987.1,1987.0,1.00712]
[1742515445882,1.00712,1987.0,1986.9,2.37283]
[1742515446693,2.29012,1987.0,1986.9,2.37283]
[1742515447782,1.00717,1986.9,1986.8,1.00721]
[1742515447987,2.37817,1986.9,1986.8,1.00721]
[1742515449090,1.371,1986.9,1986.8,1.00721]
[1742515449882,2.37817,1986.9,1986.8,1.00721]
[1742515450682,1.00722,1986.8,1986.7,1.3352]
[1742515450989,1.00722,1986.8,1986.4,1.00741]
[1742515450990,1.00737,1986.5,1986.4,1.00741]
[1742515451483,1.00747,1986.4,1986.3,1.00743]
[1742515451890,5.84839,1986.6,1986.2,1.01505315]
[1742515451891,1.00748,1986.3,1986.2,1.01505315]
[1742515452090,1.00746,1986.4,1986.3,1.00743]
[1742515452281,6.33286,1986.4,1986.3,2.34563]
[1742515453790,3.339,1986.4,1986.3,2.34563]
[1742515453989,3.339,1986.4,1986.3,2.89881453]
[1742515454782,4.34643,1986.4,1986.3,2.89881453]
[1742515455090,4.34643,1986.4,1986.3,2.34563]
[1742515455988,3.339,1986.4,1986.3,2.34563]
[1742515456181,3.339,1986.4,1986.3,2.89880575]
[1742515456588,4.34643,1986.4,1986.3,1.3382]
[1742515457089,4.34643,1986.4,1986.3,2.34568]
[1742515457778,4.34643,1986.4,1986.3,1.3382]
[1742515458997,4.34643,1986.4,1986.3,2.34568]
[1742515459184,4.34643,1986.4,1986.3,1.3382]
[1742515459392,4.34643,1986.4,1986.3,2.34568]
[1742515459588,3.339,1986.4,1986.3,2.34568]
[1742515459895,4.21509,1986.7,1986.6,1.00732]
[1742515460095,7.55309,1986.7,1986.6,1.00732]
[1742515460294,4.34625,1986.8,1986.7,1.00727]
[1742515460701,4.34625,1986.8,1986.6,2.31289]
[1742515460702,1.00727,1986.7,1986.6,2.31289]
[1742515460890,2.39227,1986.7,1986.6,1.3056]
[1742515461091,2.39227,1986.7,1986.6,2.31292]
[1742515462500,1.00727,1986.7,1986.6,2.31292]
[1742515463694,1.00727,1986.7,1986.6,1.3056]
[1742515463899,2.34397,1986.7,1986.6,1.3056]
[1742515464399,1.00743,1986.4,1986.3,1.00744]
[1742515464800,1.00742,1986.5,1986.4,1.0074]
[1742515465498,4.0252,1986.6,1986.2,2.39287315]
[1742515465499,1.00748,1986.3,1986.2,2.39287315]
[1742515465694,4.0252,1986.6,1986.3,1.00748]
[1742515465695,5.69617,1986.4,1986.3,1.00748]
[1742515465896,3.334,1986.4,1986.3,1.00748]
[1742515466091,3.334,1986.4,1986.3,1.56073526]
[1742515466801,1.00731,1986.7,1986.6,1.00732]
[1742515467001,4.34331,1986.7,1986.6,1.00732]
[1742515467406,1.00727,1986.8,1986.7,1.00726]
[1742515467596,1.00727,1986.8,1986.7,2.34146]
[1742515468096,1.00727,1986.8,1986.7,1.3342]
[1742515468296,2.36197,1986.8,1986.7,1.3342]
[1742515468492,1.00743,1986.4,1986.3,5.01854]
[1742515468697,1.00743,1986.4,1986.2,3.92036315]
[1742515468698,1.00748,1986.3,1986.2,1.72005315]
[1742515469803,1.00748,1986.3,1986.2,3.07065315]
[1742515470005,4.34447,1986.4,1986.3,1.00748]
[1742515470205,4.34447,1986.4,1986.3,2.35808]
[1742515470403,4.34443,1986.4,1986.3,2.35808]
[1742515470798,4.34443,1986.4,1986.3,1.3506]
[1742515471507,5.68003,1986.4,1986.3,2.35808]
[1742515472610,4.34443,1986.4,1986.3,2.35808]
[1742515474205,4.33641,1986.5,1986.4,1.00743]
[1742515474611,3.329,1986.5,1986.4,1.00743]
[1742515475515,4.33637,1986.5,1986.4,1.00743]
[1742515475720,3.329,1986.5,1986.4,1.00743]
[1742515476021,7.5431,1986.7,1986.6,1.00732]
[1742515476417,4.2151,1986.7,1986.6,1.00732]
[1742515476620,4.2151,1986.7,1986.6,3.03732]
[1742515477821,3.866,1987.0,1986.6,2.03]
[1742515478026,1.00722,1986.8,1986.7,1.3627]
[1742515478325,4.33421,1986.9,1986.8,1.00722]
[1742515478524,1.00722,1986.8,1986.7,2.36992]
[1742515478724,1.00722,1986.8,1986.7,1.00722]
[1742515479425,5.7421,1986.9,1986.8,1.00722]
[1742515479623,1.00724,1986.8,1986.7,1.00723]
[1742515479819,1.00724,1986.8,1986.7,1.56107545]
[1742515480027,5.7421,1986.9,1986.8,1.00722]
[1742515480525,1.00724,1986.8,1986.7,1.00724]
[1742515480919,1.00724,1986.8,1986.7,1.56115671]
[1742515481319,1.00724,1986.8,1986.7,1.00724]
[1742515481518,2.30654,1986.8,1986.7,1.00724]
[1742515482929,1.00727,1986.7,1986.6,1.66218]
[1742515483229,1.00727,1986.7,1986.6,2.21614721]
[1742515483629,2.98046,1986.8,1986.7,1.00727]
[1742515483927,1.00726,1986.8,1986.7,1.00727]
[1742515486923,5.69172,1986.9,1986.8,1.00722]
[1742515487128,1.00724,1986.8,1986.7,1.00723]
[1742515487832,4.02624,1986.8,1986.7,1.00723]
[1742515488931,1.00727,1986.7,1986.6,1.66219]
[1742515489132,1.00727,1986.7,1986.6,1.20871376]
[1742515489432,2.33747,1986.7,1986.6,0.6549]
[1742515489832,3.00777,1986.7,1986.6,0.6549]
[1742515490233,1.00732,1986.6,1986.5,1.68637]
[1742515490431,2.31172,1986.6,1986.5,2.24029271]
[1742515490733,2.31172,1986.6,1986.5,2.24029351]
[1742515491725,2.31172,1986.6,1986.5,1.56129351]
[1742515491928,4.98562,1986.7,1986.6,1.00732]
[1742515492327,1.00736,1986.6,1986.5,1.00733]
[1742515492527,1.00736,1986.6,1986.5,1.56113589]
[1742515494626,1.00736,1986.6,1986.5,1.00733]
[1742515494827,4.31331,1986.7,1986.6,1.00732]
[1742515495529,1.00737,1986.6,1986.5,1.00734]
[1742515495733,2.94547,1986.6,1986.5,1.56132114]
[1742515495933,1.00737,1986.6,1986.5,1.56132114]
[1742515496738,1.00737,1986.6,1986.5,1.56137182]
[1742515497041,2.41967,1986.6,1986.5,1.56137182]
[1742515497537,2.41967,1986.6,1986.5,2.96537182]
[1742515498633,2.41967,1986.6,1986.5,2.96548068]
[1742515498830,2.41967,1986.6,1986.5,1.95814068]
[1742515499036,2.41967,1986.6,1986.5,2.96551068]
[1742515499237,2.41967,1986.6,1986.5,2.96553172]
[1742515499946,2.41967,1986.6,1986.5,1.95816172]
[1742515500238,2.41967,1986.6,1986.5,1.404]
[1742515500439,1.00748,1986.3,1986.2,0.00756315]
[1742515500639,1.00748,1986.3,1986.2,1.35866315]
[1742515501137,4.30348,1986.3,1986.2,1.35866315]
[1742515503745,7.51128,1986.3,1986.2,1.35866315]
[1742515504352,7.51128,1986.3,1986.2,0.00756315]
[1742515505039,10.01128,1986.3,1986.2,0.00756315]
[1742515506145,1.00758,1986.1,1986.0,1.3635]
[1742515506446,4.29958,1986.1,1986.0,1.3635]
[1742515506849,5.63628,1986.1,1986.0,1.3635]
[1742515508149,1.3898,1986.2,1986.0,1.3635]
[1742515508150,1.00757,1986.2,1986.0,1.3635]
[1742515508351,3.293,1986.3,1986.2,1.00748]
[1742515508556,4.30048,1986.3,1986.2,1.00748]
[1742515508755,3.295,1986.4,1986.3,1.00744]
[1742515508948,5.2907,1986.5,1986.1,3.89655]
[1742515508949,3.2078,1986.5,1986.4,1.00743]
[1742515509150,1.3979,1986.6,1986.5,1.00737]
[1742515509347,3.298,1986.6,1986.5,1.00737]
[1742515509546,4.02624,1986.8,1986.6,1.00727]
[1742515509547,1.00728,1986.7,1986.6,1.00727]
[1742515509746,7.32427,1986.8,1986.7,1.00727]
[1742515509956,1.00727,1986.7,1986.6,2.38491]
[1742515511256,3.019,1986.8,1986.7,1.00727]
[1742515511461,1.9582,1986.8,1986.7,5.55447]
[1742515511655,2.93379,1986.9,1986.8,1.00722]
[1742515511850,1.91903685,1986.9,1986.8,3.03742]
[1742515512054,1.00715,1987.0,1986.9,1.00712]
[1742515512261,1.00715,1987.0,1986.9,1.3394]
[1742515512459,2.33375,1987.0,1986.9,1.3394]
[1742515513355,1.00715,1987.0,1986.9,1.3394]
[1742515514152,1.00715,1987.0,1986.9,2.34657]
[1742515514550,4.30215,1987.0,1986.9,2.34657]
[1742515514752,4.30215,1987.0,1986.9,1.3394]
[1742515514953,5.66985,1987.0,1986.9,1.3394]
[1742515515651,4.30215,1987.0,1986.9,1.3394]
[1742515517261,4.29815,1987.0,1986.9,2.34657]
[1742515517658,4.29815,1987.0,1986.9,1.3394]
[1742515518059,4.29815,1987.0,1986.9,2.34657]
[1742515518460,0.00756315,1987.1,1987.0,1.00712]
[1742515518662,3.29756315,1987.1,1987.0,1.00712]
[1742515519053,0.00756315,1987.1,1987.0,1.00712]
[1742515519254,3.29756315,1987.1,1987.0,1.65952]
[1742515519453,0.00756315,1987.1,1987.0,1.65952]
[1742515519861,1.01463315,1987.1,1987.0,1.65952]
[1742515520263,0.00756315,1987.1,1987.0,1.65952]
[1742515523661,0.00756315,1987.1,1987.0,2.95532]
[1742515523870,0.00756315,1987.1,1987.0,3.50679908]
[1742515524166,0.00756315,1987.1,1987.0,2.95532]
[1742515525866,0.00756315,1987.1,1987.0,6.24032]
[1742515527770,3.2078,1987.5,1987.0,8.74032]
[1742515528068,5.3418,1987.8,1987.2,3.2078]
[1742515528264,5.3418,1987.8,1987.3,1.2841]
[1742515528265,1.00681,1987.7,1987.3,1.2841]
[1742515528464,5.3418,1987.8,1987.3,3.80149]
[1742515528665,6.34854,1987.8,1987.6,1.00679]
[1742515529069,6.34854,1987.8,1987.7,1.2841]
[1742515530165,0.70046315,1987.9,1987.7,1.2841]
[1742515530166,0.00756315,1987.9,1987.7,1.2841]
[1742515530568,1.00672,1987.8,1987.7,1.2841]
[1742515530763,4.21452,1987.8,1987.7,1.2841]
[1742515530963,5.57332,1987.8,1987.7,1.2841]
[1742515531163,3.2078,1987.8,1987.7,1.2841]
[1742515531363,3.2078,1987.8,1987.5,0.00756315]
[1742515531671,4.21462,1987.6,1987.5,0.00756315]
[1742515531865,7.52162,1987.6,1987.5,0.00756315]
[1742515532271,4.31382,1987.6,1987.5,0.00756315]
[1742515532572,5.62382,1987.6,1987.5,0.00756315]
[1742515533070,5.62382,1987.6,1987.5,2.30633315]
[1742515533273,5.62382,1987.6,1987.5,1.29946315]
[1742515534269,5.62382,1987.6,1987.5,2.30633315]
[1742515534670,3.307,1987.6,1987.5,2.30633315]
[1742515534874,4.31382,1987.6,1987.5,2.30633315]
[1742515535076,1.01425315,1987.9,1987.8,1.00672]
[1742515535375,2.02466315,1987.9,1987.6,2.5906]
[1742515535569,2.02466315,1987.9,1987.7,1.3887]
[1742515535570,5.33266315,1987.9,1987.7,1.3887]
[1742515535765,1.3742,1987.8,1987.7,1.3887]
[1742515536268,2.38092,1987.8,1987.7,1.3887]
[1742515538673,2.38092,1987.8,1987.7,2.39547]
[1742515539370,2.38092,1987.8,1987.7,1.3887]
[1742515540165,2.38092,1987.8,1987.7,2.39547]
[1742515540771,2.38092,1987.8,1987.7,1.3887]
[1742515541970,5.58872,1987.8,1987.7,1.3887]
[1742515542566,1.00672,1987.8,1987.7,1.3887]
[1742515542772,4.21452,1987.8,1987.7,1.3887]
[1742515543172,5.56352,1987.8,1987.7,1.3887]
[1742515543574,6.22912,1987.8,1987.7,1.3887]
[1742515550888,6.22912,1987.8,1987.7,2.39547]
[1742515551198,2.35572,1987.8,1987.7,2.39547]
[1742515551898,5.64072,1987.8,1987.7,2.39547]
[1742515554585,0.00756315,1987.9,1987.8,1.00672]
[1742515554790,0.00756315,1987.9,1987.8,4.24514651]
[1742515555990,0.00756315,1987.9,1987.8,4.2448846]
[1742515558002,0.00756315,1987.9,1987.8,4.24472292]
[1742515558899,0.00756315,1987.9,1987.8,4.24463404]
[1742515559902,0.00756315,1987.9,1987.8,3.69182]
[1742515560205,0.00756315,1987.9,1987.8,4.24459197]
[1742515561307,0.00756315,1987.9,1987.8,4.24459384]
[1742515563201,0.00756315,1987.9,1987.8,3.69182]
[1742515563402,0.00756315,1987.9,1987.8,4.24477955]
[1742515565206,0.00756315,1987.9,1987.8,3.69182]
[1742515565508,0.00756315,1987.9,1987.8,4.24470516]
[1742515566910,0.00756315,1987.9,1987.8,4.24468413]
[1742515567303,0.00756315,1987.9,1987.8,4.24468945]
[1742515570208,0.00756315,1987.9,1987.8,5.12934186]
[1742515570511,0.00756315,1987.9,1987.8,4.24468945]